bitfinex/quotes_ETHUSD_20251117
["timestamp","ask_amount","ask_price","bid_price","bid_amount"]
[1763410637812,0.1079,2991.9,2989.6,0.405504]
[1763410638313,0.1079,2991.9,2989.8,0.405504]
[1763410638514,0.405504,2991.8,2989.8,0.405504]
[1763410638728,0.2876,2992.7,2989.9,0.52824593]
[1763410638896,1.12828417,2992.7,2990.0,0.43894881]
[1763410639099,1.12828417,2992.7,2990.2,0.405504]
[1763410639333,0.2876,2993.4,2990.2,0.405504]
[1763410639638,0.2876,2993.4,2990.4,0.405504]
[1763410639997,1.19459264,2993.4,2990.6,0.405504]
[1763410640198,0.2876,2993.3,2990.8,0.405504]
[1763410640413,0.2876,2993.3,2990.9,0.4948]
[1763410640414,1.12828417,2993.3,2990.9,0.4948]
[1763410640757,0.2876,2993.2,2991.0,0.405504]
[1763410641050,0.002,2992.7,2991.0,0.405504]
[1763410641252,0.002,2992.7,2991.1,0.4948]
[1763410641612,0.002,2992.7,2991.2,0.03343139]
[1763410641950,0.002,2992.7,2991.3,0.4948]
[1763410642157,0.002,2992.7,2991.4,0.405504]
[1763410642453,0.0436,2993.6,2991.4,0.586004]
[1763410642638,0.0436,2993.6,2991.5,0.4948]
[1763410642846,8.29894166,2994.7,2991.6,0.405504]
[1763410643219,8.29894166,2994.7,2991.8,0.405504]
[1763410643426,0.10915417,2994.5,2991.7,0.4948]
[1763410643627,8.11924166,2994.1,2991.7,0.4948]
[1763410643827,0.10915417,2994.5,2991.8,0.43892869]
[1763410644028,0.1797,2994.7,2991.8,0.43892869]
[1763410644237,0.1797,2994.7,2992.2,0.405504]
[1763410644471,0.0436,2996.0,2992.4,1.31249664]
[1763410644637,0.0436,2996.0,2993.0,1.31249664]
[1763410644838,0.0436,2996.6,2993.2,0.405504]
[1763410645038,0.1613035,2997.0,2993.7,1.31249664]
[1763410645252,0.1613035,2997.0,2994.3,1.31249664]
[1763410645567,0.87204405,2999.6,2998.8,0.1805]
[1763410645771,0.3859,3001.2,2998.9,3.26199822]
[1763410645925,0.3859,3001.2,2999.0,0.43884844]
[1763410646125,0.3859,3001.2,3000.5,0.88699551]
[1763410646340,0.3859,3001.2,2999.7,0.88699551]
[1763410646588,0.3859,3001.2,2999.8,0.03333555]
[1763410646865,0.3859,3001.2,2999.4,0.88699551]
[1763410647062,0.3859,3001.2,2999.5,0.88699551]
[1763410647363,0.3859,3001.2,2999.6,0.03333777]
[1763410647659,0.3859,3001.2,2999.3,0.4948]
[1763410648265,8.11924166,3001.9,2999.4,0.88699551]
[1763410648266,0.4548,3001.9,2999.4,0.88699551]
[1763410648464,0.4548,3001.8,2999.4,1.38179551]
[1763410648622,0.4548,3001.8,2998.2,2.95900683]
[1763410648623,8.11924166,3001.3,2998.8,0.88699551]
[1763410648825,8.11924166,3001.3,2998.7,0.4948]
[1763410649024,1.76729664,3001.2,2998.2,1.38179551]
[1763410649324,0.4548,3001.2,2998.3,0.4948]
[1763410649662,0.4548,3001.1,2998.3,0.4948]
[1763410649860,0.4548,3001.1,2998.6,0.90699264]
[1763410650072,0.1929,3002.0,2999.2,1.31249664]
[1763410650073,0.4548,3001.9,2999.2,1.31249664]
[1763410650280,0.6477,3002.0,2999.2,0.90699264]
[1763410650458,0.4548,3001.9,2999.3,0.6753]
[1763410650872,0.405504,3001.7,2999.3,0.6753]
[1763410651061,0.405504,3001.7,2998.7,0.4948]
[1763410651239,0.405504,3000.3,2997.9,0.4948]
[1763410651574,0.405504,2999.6,2997.2,0.4948]
[1763410651772,0.405504,2999.4,2997.2,0.4948]
[1763410651987,0.405504,2999.2,2997.2,0.4948]
[1763410652164,0.405504,2999.2,2997.0,0.1805]
[1763410652471,0.405504,2999.2,2995.4,1.77399102]
[1763410652472,0.405504,2999.0,2996.8,0.4948]
[1763410652862,0.405504,2998.8,2996.1,0.6753]
[1763410653266,0.405504,2998.6,2996.2,0.4948]
[1763410653477,0.405504,2998.6,2995.5,8.29974166]
[1763410653478,0.405504,2998.4,2995.7,0.4948]
[1763410653689,0.405504,2998.2,2995.7,0.4948]
[1763410653841,0.405504,2998.2,2995.5,0.1805]
[1763410654048,0.405504,2998.2,2994.3,8.11924166]
[1763410654049,0.405504,2997.8,2994.3,8.11924166]
[1763410654313,0.405504,2997.6,2994.9,0.4948]
[1763410654584,8.11924166,2997.3,2994.9,0.4948]
[1763410654796,0.405504,2997.1,2995.0,0.03338898]
[1763410654941,0.405504,2996.9,2993.8,0.4948]
[1763410655146,0.405504,2996.7,2993.8,0.4948]
[1763410655590,0.405504,2996.5,2993.8,0.4948]
[1763410655897,8.52474566,2996.5,2993.8,0.4948]
[1763410656047,1.35225457,2996.4,2993.8,0.4948]
[1763410656251,0.405504,2996.3,2993.8,0.4948]
[1763410656567,0.859804,2996.3,2993.8,0.4948]
[1763410656751,0.405504,2996.1,2993.8,0.4948]
[1763410657259,0.405504,2995.9,2993.8,0.4948]
[1763410657767,0.405504,2995.7,2993.8,0.4948]
[1763410658287,0.4543,2995.8,2993.8,0.4948]
[1763410658490,0.4543,2996.4,2993.9,0.405504]
[1763410658703,0.1361,2997.0,2993.9,0.405504]
[1763410658704,0.4543,2996.9,2994.1,0.86596009]
[1763410658896,0.1685,2996.6,2994.2,0.86596009]
[1763410659054,0.1929,2998.7,2994.3,0.4588]
[1763410659401,0.6472,3000.2,2996.6,0.405504]
[1763410659566,0.1955,3001.6,2997.9,0.86596009]
[1763410659567,0.4543,3000.8,2997.9,0.86596009]
[1763410659896,0.4543,3000.8,2998.4,0.86596009]
[1763410660064,0.4543,3000.8,2998.3,1.27146409]
[1763410660256,0.4543,3000.8,2998.4,0.86596009]
[1763410660669,0.4543,3000.8,2998.5,0.63609527]
[1763410661053,0.4543,3000.8,2997.9,0.4588]
[1763410661394,0.4543,3000.8,2996.9,2.37447491]
[1763410661395,3.959504,3000.4,2997.1,0.86596009]
[1763410661570,3.959504,3000.4,2997.0,1.32476009]
[1763410661901,0.405504,3000.2,2997.1,1.77295273]
[1763410662190,0.405504,3000.0,2997.2,0.68197527]
[1763410662366,0.4543,2999.9,2997.5,0.86596009]
[1763410662573,0.4543,2999.9,2997.8,0.86596009]
[1763410662792,0.104,3000.3,2997.8,0.86596009]
[1763410662958,0.104,3000.3,2998.2,0.86596009]
[1763410663154,0.104,3000.3,2998.0,1.18266068]
[1763410663155,0.5583,3000.3,2998.0,0.86596009]
[1763410663367,0.5583,3000.3,2997.2,2.59765018]
[1763410663368,0.405504,3000.2,2997.4,0.86596009]
[1763410663593,0.405504,3000.0,2997.6,0.86596009]
[1763410663978,0.104,3000.3,2997.7,1.32476009]
[1763410663979,0.4543,2999.9,2997.7,1.32476009]
[1763410664173,0.4543,2999.9,2997.8,0.86596009]
[1763410664500,0.4543,3000.7,2998.4,0.86596009]
[1763410664655,0.4543,3000.7,2998.6,0.86596009]
[1763410664861,0.4543,3000.7,2998.7,0.86596009]
[1763410665070,0.4543,3000.7,2998.5,0.86596009]
[1763410665409,0.405504,3000.6,2998.1,0.86596009]
[1763410665813,0.4543,3000.5,2998.2,0.4588]
[1763410666114,3.959504,3000.2,2997.7,0.86596009]
[1763410666319,0.90699264,2999.9,2997.2,0.86596009]
[1763410666490,0.4543,2999.8,2997.3,0.86596009]
[1763410666674,0.4543,2999.8,2997.2,0.86596009]
[1763410666675,0.405504,2999.7,2997.2,0.86596009]
[1763410666872,3.554,2999.6,2996.9,0.86596009]
[1763410667184,3.554,2999.6,2996.8,0.86596009]
[1763410667185,0.405504,2999.1,2996.8,0.86596009]
[1763410667385,0.405504,2999.4,2996.9,0.86596009]
[1763410667604,0.405504,2999.2,2996.9,1.07082217]
[1763410667805,0.4543,2999.3,2996.9,1.07082217]
[1763410668120,0.405504,2999.1,2997.2,0.86596009]
[1763410668271,0.405504,2999.1,2997.5,0.86596009]
[1763410668474,0.405504,2998.9,2997.4,0.86596009]
[1763410668915,0.405504,2998.7,2997.5,0.89932122]
[1763410669144,0.4543,3000.3,2998.0,0.86596009]
[1763410669281,0.4543,3000.3,2998.1,0.86596009]
[1763410669477,4.0083,3000.3,2997.9,0.86596009]
[1763410669682,4.0083,3000.3,2998.1,0.86596009]
[1763410669683,0.4112,3000.2,2998.1,0.86596009]
[1763410669879,3.79849264,3000.2,2998.0,0.86596009]
[1763410670118,2.431504,2999.7,2997.7,0.86596009]
[1763410670419,2.431504,2999.7,2997.9,0.86596009]
[1763410670610,0.405504,2999.5,2997.9,0.86596009]
[1763410670795,0.4543,3000.5,2998.4,0.86596009]
[1763410670995,0.4543,3000.3,2999.1,0.86596009]
[1763410671193,0.4543,3000.3,2999.0,0.86596009]
[1763410671426,0.4543,3000.3,2999.6,0.86596009]
[1763410671640,0.4543,3000.3,2999.2,1.77399102]
[1763410671641,0.4543,3000.3,2999.5,0.86596009]
[1763410671832,0.4543,3000.3,2999.6,0.86596009]
[1763410672033,0.4543,3001.1,3000.0,0.86596009]
[1763410672332,0.4543,3001.1,3000.1,0.86596009]
[1763410672481,0.4543,3001.1,3000.0,0.86596009]
[1763410672682,0.4543,3001.1,2999.9,0.86596009]
[1763410672955,0.4543,3001.1,3000.1,0.86596009]
[1763410673246,0.4543,3001.1,3000.7,0.86596009]
[1763410673447,0.4543,3001.1,3000.6,0.86596009]
[1763410673607,0.4543,3001.1,3000.5,0.86596009]
[1763410673805,0.4543,3001.1,3000.6,0.86596009]
[1763410674148,0.4543,3001.1,3000.5,0.86596009]
[1763410674311,0.405504,3000.7,3000.1,0.86596009]
[1763410674511,0.405504,3000.5,3000.1,0.86596009]
[1763410674714,0.405504,3000.3,3000.1,0.86596009]
[1763410675204,0.405504,3000.1,2999.5,1.18266068]
[1763410675411,0.405504,2999.7,2999.4,1.18266068]
[1763410675616,0.405504,2999.5,2999.4,1.18266068]
[1763410676123,0.859804,2999.5,2999.2,1.77399102]
[1763410676433,0.859804,2999.5,2999.3,1.77399102]
[1763410676640,0.859804,2999.5,2999.4,1.18503226]
[1763410677238,0.859804,2999.5,2999.1,1.18503226]
[1763410677442,0.405504,2999.3,2998.9,1.18503226]
[1763410677615,0.4543,2999.4,2998.9,1.18503226]
[1763410677947,0.1955,2999.8,2999.1,1.18503226]
[1763410678148,0.002,3001.5,2999.7,1.18503226]
[1763410678316,0.4543,3000.5,3000.0,1.18503226]
[1763410678517,0.4543,3000.3,3000.0,1.18503226]
[1763410678837,0.002,3001.5,3000.0,1.18503226]
[1763410678838,0.4543,3000.4,3000.2,1.18503226]
[1763410679420,0.4543,3000.4,3000.1,1.18503226]
[1763410679749,0.4543,3000.4,2999.9,1.18503226]
[1763410680061,0.405504,3000.3,2999.8,1.18503226]
[1763410680278,0.405504,3000.1,2999.8,1.18503226]
[1763410680449,0.1955,2999.9,2999.8,1.18503226]
[1763410680768,0.405504,2999.8,2999.4,1.18503226]
[1763410680983,4.8747344,2999.8,2999.4,1.18503226]
[1763410681186,3.959504,2999.4,2998.4,1.77399102]
[1763410681484,3.959504,2999.4,2997.7,2.95900683]
[1763410681485,3.959504,2999.0,2997.9,1.77399102]
[1763410681682,0.4609304,2999.8,2997.9,1.77399102]
[1763410681683,3.554,2998.6,2997.9,1.77399102]
[1763410681835,0.405504,2997.9,2997.8,1.77499102]
[1763410682030,0.405504,2997.9,2997.8,0.001]
[1763410682260,0.405504,2998.2,2997.8,0.001]
[1763410682576,0.405504,2999.7,2998.1,1.77399102]
[1763410682781,0.405504,2999.2,2998.4,1.78058886]
[1763410682944,0.4543,3000.0,2998.9,1.78058886]
[1763410683133,0.4543,3000.0,2999.3,1.78058886]
[1763410683334,0.4543,3000.0,2999.2,1.78058886]
[1763410683533,0.4543,2999.8,2999.2,1.78058886]
[1763410683934,0.002,3001.1,2999.2,1.78058886]
[1763410684134,0.4543,3000.6,2999.4,1.78058886]
[1763410684357,0.4543,3000.6,2999.5,1.78058886]
[1763410684557,0.90699264,3000.2,2999.2,1.78058886]
[1763410684855,3.554,2998.9,2998.7,1.78058886]
[1763410685191,0.405504,2999.5,2998.6,1.78058886]
[1763410685395,0.1955,2999.6,2998.9,1.78058886]
[1763410685597,0.1955,2999.6,2999.0,1.78058886]
[1763410685799,0.1955,2999.6,2998.0,0.90699264]
[1763410685800,3.959504,2999.4,2998.7,1.78058886]
[1763410685998,3.959504,2999.4,2998.6,1.78058886]
[1763410686160,3.959504,2999.2,2998.5,1.78058886]
[1763410686497,3.959504,2999.2,2998.9,1.78058886]
[1763410686676,3.959504,2999.2,2999.0,1.78058886]
[1763410687072,0.1955,2999.6,2999.1,1.78058886]
[1763410687322,0.4939,3000.4,2999.2,2.40781713]
[1763410687481,0.4939,3000.4,2999.9,1.78791386]
[1763410687862,2.431504,2999.8,2999.4,1.73041386]
[1763410688086,0.405504,2998.8,2998.1,2.37447491]
[1763410688379,0.0998,2998.4,2997.9,2.95900683]
[1763410688590,0.0998,2998.4,2997.8,0.001]
[1763410688591,0.405504,2998.3,2997.8,0.001]
[1763410688793,2.026,2999.3,2997.8,0.001]
[1763410688990,3.554,2999.7,2997.8,0.001]
[1763410689190,3.554,2999.2,2997.9,2.95900683]
[1763410689396,9.75581874,3002.1,2998.5,0.90699264]
[1763410689701,0.4939,3000.8,2999.3,2.95900683]
[1763410689908,0.4939,3000.8,2999.5,2.95900683]
[1763410690211,3.554,3000.7,2999.5,2.95900683]
[1763410690381,3.554,3000.3,2999.1,7.10392544]
[1763410690582,3.554,3000.1,2998.8,2.95900683]
[1763410690983,3.554,2999.9,2998.8,2.95900683]
[1763410691236,3.959504,2999.8,2998.7,2.95900683]
[1763410691397,3.959504,2999.8,2998.5,2.95900683]
[1763410691743,3.959504,2999.6,2998.5,2.95900683]
[1763410692220,3.959504,2999.2,2998.1,2.95900683]
[1763410692396,3.959504,2999.2,2997.9,2.95900683]
[1763410692592,3.959504,2998.6,2997.8,2.96000683]
[1763410692894,3.959504,2998.6,2997.8,0.001]
[1763410693082,0.405504,2998.7,2997.8,0.001]
[1763410693284,0.9530404,2999.7,2997.8,3.41030683]
[1763410693621,0.4939,2999.6,2998.0,2.95900683]
[1763410693794,0.405504,2999.5,2998.1,2.95900683]
[1763410693996,0.1955,3000.9,2998.2,0.03335334]
[1763410694189,0.4939,3000.4,2999.3,2.95900683]
[1763410694390,0.4939,3000.4,2999.2,2.95900683]
[1763410694697,2.93299264,3000.3,2998.6,2.95900683]
[1763410695006,0.1955,3000.9,2998.6,0.1813]
[1763410695194,3.554,3000.7,2998.7,3.40930683]
[1763410695394,3.554,3000.5,2998.9,2.95900683]
[1763410695607,0.40479,3000.6,2998.9,2.95900683]
[1763410695608,3.554,3000.3,2998.9,2.95900683]
[1763410695807,0.1955,3000.9,2998.9,2.95900683]
[1763410695808,0.1955,3000.9,2999.0,0.4503]
[1763410696108,0.6894,3000.9,2999.3,2.95900683]
[1763410696293,3.554,3000.8,2999.1,2.95900683]
[1763410696498,3.554,3000.4,2999.1,2.95900683]
[1763410696732,0.91824,3000.7,2999.2,0.03334222]
[1763410696925,0.91824,3000.7,2999.3,2.95900683]
[1763410697146,0.1955,3000.9,2999.4,2.95900683]
[1763410697459,0.6879,3001.3,2999.6,2.95900683]
[1763410697599,0.6879,3001.3,2999.9,2.95900683]
[1763410698131,0.4666,3001.0,2999.5,7.10392544]
[1763410698338,0.4666,3001.0,2998.9,6.41797324]
[1763410698339,3.959504,3000.7,2999.7,2.39214374]
[1763410698498,3.959504,3000.5,2999.6,2.39214374]
[1763410698695,3.959504,3000.5,2999.5,2.39214374]
[1763410698899,3.959504,3000.3,2999.4,2.39214374]
[1763410699140,0.405504,2999.4,2999.1,2.39214374]
[1763410699437,0.544904,2999.5,2998.3,2.39214374]
[1763410699438,3.959504,2999.0,2998.3,2.39214374]
[1763410699641,0.405504,2998.6,2998.3,2.39214374]
[1763410699812,0.405504,2998.6,2997.9,2.39214374]
[1763410700011,4.426104,2998.6,2997.8,0.001]
[1763410700322,6.452104,2998.6,2997.8,0.001]
[1763410700522,4.426104,2998.6,2997.8,0.001]
[1763410700731,3.959504,2998.4,2997.8,0.001]
[1763410700922,0.405504,2998.2,2997.8,0.001]
[1763410701436,0.405504,2998.1,2997.8,0.001]
[1763410702002,0.405504,2998.3,2997.8,0.001]
[1763410702512,1.63771904,3000.4,2997.8,0.001]
[1763410702513,2.026,2999.9,2997.9,2.39214374]
[1763410702838,0.4666,2999.9,2998.3,2.39214374]
[1763410703037,0.1394,2999.9,2998.7,2.39214374]
[1763410703240,0.1394,2999.9,2998.9,2.39214374]
[1763410703544,0.1394,2999.9,2999.0,2.39214374]
[1763410703718,0.606,2999.9,2999.0,2.39214374]
[1763410703921,4.16,2999.9,2998.8,2.39214374]
[1763410704104,0.8826,2999.8,2998.7,2.39214374]
[1763410704309,4.4366,2999.8,2998.8,2.39214374]
[1763410704530,4.4366,2999.8,2998.4,2.95900683]
[1763410704531,4.0206,2999.7,2998.7,2.39214374]
[1763410704845,0.416,2999.8,2998.2,0.4936]
[1763410704846,0.416,2999.8,2999.0,2.39214374]
[1763410705009,0.405504,2999.8,2999.0,2.39214374]
[1763410705202,0.1394,2999.9,2999.0,2.39214374]
[1763410705401,0.1394,2999.9,2998.6,3.15010683]
[1763410705402,3.554,2999.7,2998.9,2.39214374]
[1763410705608,0.1394,2999.9,2998.7,2.39214374]
[1763410705812,0.4666,3000.4,2999.2,2.39214374]
[1763410706046,0.4666,3000.4,2998.6,3.15010683]
[1763410706047,0.4666,3000.4,2999.3,2.39214374]
[1763410706260,3.554,3000.3,2999.2,2.39214374]
[1763410706463,3.95606,3000.2,2999.2,2.39214374]
[1763410707041,3.959504,3000.1,2999.0,2.39214374]
[1763410707243,0.405504,2999.8,2998.9,2.39214374]
[1763410707437,4.86649664,2999.6,2998.6,2.39214374]
[1763410707918,0.405504,2999.5,2999.4,1.79492337]
[1763410708143,0.1394,3000.0,2999.3,2.39214374]
[1763410708345,0.4666,3001.2,2999.8,2.39214374]
[1763410708653,0.4666,3001.2,3000.7,1.79421384]
[1763410708820,0.4666,3001.2,3000.6,1.79421384]
[1763410709468,0.1955,3001.6,3000.5,1.79421384]
[1763410709469,0.4666,3001.0,3000.5,1.79421384]
[1763410709968,0.405504,3000.9,3000.5,1.79421384]
[1763410710168,0.1955,3001.6,3000.7,1.79421384]
[1763410710316,0.4666,3001.3,3000.7,1.79421384]
[1763410710545,0.1955,3001.6,3000.5,1.79421384]
[1763410710751,0.1955,3001.6,3000.7,1.79421384]
[1763410711160,0.1955,3001.6,3000.9,1.79421384]
[1763410711690,0.1955,3001.6,3001.0,1.79421384]
[1763410711858,0.1955,3001.6,3000.9,1.79421384]
[1763410712060,0.405504,3001.5,3000.9,1.79421384]
[1763410712477,0.405504,3001.5,3001.0,1.19449944]
[1763410712679,0.405504,3001.5,3000.9,1.19449944]
[1763410712912,0.407504,3001.1,3000.8,1.19449944]
[1763410713203,0.407504,3001.1,3000.5,1.19449944]
[1763410713349,0.405504,3000.9,3000.3,1.19449944]
[1763410713549,0.405504,3000.7,3000.2,1.19449944]
[1763410713750,0.405504,3000.7,3000.3,1.19449944]
[1763410713974,0.405504,3000.5,3000.0,1.19449944]
[1763410714312,0.405504,3000.5,2999.9,1.19449944]
[1763410714598,0.405504,3000.4,2999.9,1.19449944]
[1763410714953,0.405504,3000.2,2999.8,1.19449944]
[1763410715287,0.002,3001.1,2999.9,1.19449944]
[1763410715483,0.002,3001.1,3000.6,1.19444763]
[1763410715698,0.002,3001.1,3000.8,1.19444763]
[1763410716072,0.002,3001.1,3000.9,1.19444763]
[1763410716629,0.002,3001.1,3000.7,1.19444763]
[1763410716917,0.405504,3001.0,3000.4,1.19444763]
[1763410717067,0.002,3000.5,3000.4,1.19444763]
[1763410717272,0.002,3000.5,3000.3,1.10232174]
[1763410717511,0.002,3000.5,3000.3,1.79167144]
[1763410717818,0.405504,3000.4,3000.0,1.79167144]
[1763410718023,0.002,3000.5,2999.8,1.79167144]
[1763410718316,0.002,3000.5,2999.9,1.79167144]
[1763410718518,0.405504,3000.4,2999.8,1.79167144]
[1763410719021,0.002,3000.5,2999.8,1.79167144]
[1763410719226,0.002,3000.5,2999.9,1.79167144]
[1763410719378,0.002,3000.5,3000.2,1.79167144]
[1763410719809,0.002,3000.5,3000.1,1.79167144]
[1763410720124,0.002,3000.5,3000.0,1.79167144]
[1763410720601,0.002,3000.5,3000.1,1.79167144]
[1763410720803,0.002,3000.5,3000.2,1.79167144]
[1763410720989,0.002,3000.5,3000.1,2.39214374]
[1763410721184,0.002,3000.5,3000.4,1.7917307]
[1763410721598,0.002,3000.5,3000.2,1.7917307]
[1763410721856,0.002,3000.5,3000.3,1.7917307]
[1763410722008,0.002,3000.5,3000.3,1.79151247]
[1763410722720,0.002,3000.5,3000.4,1.79151247]
[1763410722901,0.002,3000.5,3000.4,0.4897]
[1763410723210,0.189,3002.2,3000.4,3.7368912]
[1763410723413,3.554,3001.9,3001.0,1.79105705]
[1763410723623,3.554,3001.7,3001.0,1.79105705]
[1763410723825,0.189,3002.2,3001.0,0.4897]
[1763410724025,0.191,3002.3,3001.5,1.79105705]
[1763410724232,8.29601848,3002.3,3001.3,1.79105705]
[1763410724525,3.554,3002.1,3001.4,1.79105705]
[1763410724727,0.405504,3002.0,3001.2,1.79105705]
[1763410724876,3.554,3002.0,3001.1,1.79105705]
[1763410725515,0.82960185,3002.2,3001.4,1.79105705]
[1763410725911,0.6524,3002.6,3001.5,1.79105705]
[1763410726117,0.191,3002.6,3001.6,1.79105705]
[1763410726320,0.0988,3003.5,3002.5,0.1895]
[1763410726659,0.0988,3003.5,3001.7,0.1895]
[1763410726660,4.0154,3003.5,3002.4,1.79105705]
[1763410726803,1.22798434,3003.4,3002.3,1.79105705]
[1763410727201,1.22798434,3003.4,3002.2,1.79105705]
[1763410727851,1.22798434,3003.4,3002.1,1.79105705]
[1763410728297,0.90699264,3003.3,3002.1,1.79105705]
[1763410728636,0.15942497,3003.6,3002.0,0.1895]
[1763410728637,0.15942497,3003.6,3002.2,0.4897]
[1763410728807,8.10501848,3003.3,3002.1,1.79105705]
[1763410728995,0.405504,3003.1,3002.0,1.79105705]
[1763410729504,0.405504,3003.1,3002.2,1.79105705]
[1763410729704,0.405504,3003.5,3002.2,1.79105705]
[1763410729911,0.405504,3003.5,3002.3,0.4897]
[1763410730112,0.15942497,3003.6,3002.5,1.79105705]
[1763410730444,0.15942497,3003.6,3002.4,1.79105705]
[1763410730661,0.405504,3003.4,3002.1,1.79105705]
[1763410730858,0.405504,3002.9,3001.7,1.79105705]
[1763410731009,1.31249664,3002.9,3001.8,0.1895]
[1763410731338,0.405504,3003.5,3002.3,1.79105705]
[1763410731540,0.15942497,3003.6,3002.4,1.79105705]
[1763410731738,0.15942497,3003.6,3001.8,0.6792]
[1763410731739,0.15942497,3003.6,3002.3,1.79105705]
[1763410731914,0.405504,3003.5,3002.3,1.79105705]
[1763410732245,0.15942497,3003.6,3002.8,1.79105705]
[1763410732539,0.15942497,3003.6,3003.5,0.1895]
[1763410732742,0.15942497,3003.6,3003.5,2.47025705]
[1763410733040,0.15942497,3003.6,3003.5,0.6792]
[1763410733247,0.15942497,3003.6,3003.5,1.77547828]
[1763410733545,0.405504,3003.5,3003.2,1.77547828]
[1763410733745,0.405504,3003.5,3002.9,1.77547828]
[1763410734121,0.405504,3003.5,3002.6,1.77547828]
[1763410734319,0.15942497,3003.6,3002.7,2.26517828]
[1763410734653,0.405504,3003.5,3002.7,1.77547828]
[1763410734948,0.405504,3003.5,3002.6,1.77547828]
[1763410735111,0.405504,3003.5,3002.5,1.77547828]
[1763410735316,0.405504,3003.5,3002.9,0.88787049]
[1763410735632,0.866904,3003.5,3002.6,0.88787049]
[1763410736013,8.51052248,3003.3,3002.4,0.88787049]
[1763410736347,0.405504,3003.1,3002.2,0.88787049]
[1763410736644,0.405504,3003.1,3002.4,0.88787049]
[1763410737011,0.405504,3003.1,3002.3,0.88787049]
[1763410737210,0.405504,3003.5,3002.6,0.88787049]
[1763410737412,0.405504,3003.5,2999.6,8.10501848]
[1763410737413,0.405504,3002.7,3002.0,0.88787049]
[1763410737634,12.06452248,3002.5,3001.9,0.88787049]
[1763410737820,8.51052248,3002.5,3001.5,0.63777049]
[1763410738019,0.405504,3002.3,3001.0,1.77547828]
[1763410738245,0.405504,3002.1,3000.9,1.77547828]
[1763410738552,0.405504,3001.9,3000.6,1.77547828]
[1763410738847,0.866904,3002.1,3000.6,1.77547828]
[1763410739007,0.866904,3002.3,3000.5,1.77647828]
[1763410739211,0.405504,3001.9,3000.5,1.77647828]
[1763410739611,0.17179562,3002.2,3000.8,1.77547828]
[1763410739856,0.405504,3002.5,3001.0,1.77547828]
[1763410740033,0.405504,3002.3,3000.9,1.77547828]
[1763410740410,0.405504,3002.1,3000.8,1.77547828]
[1763410740840,0.90699264,3001.8,3000.5,1.77647828]
[1763410741008,0.90699264,3001.8,3000.5,0.001]
[1763410741009,0.405504,3001.2,3000.5,0.001]
[1763410741523,8.10501848,3001.3,3000.5,0.001]
[1763410741524,0.405504,3001.0,3000.5,0.001]
[1763410742050,0.405504,3000.8,3000.5,0.001]
[1763410742209,0.405504,3000.8,2999.6,1.77547828]
[1763410742654,0.405504,3001.3,2999.8,1.77547828]
[1763410742814,0.405504,3001.3,3000.1,1.77547828]
[1763410743015,0.4614,3001.2,3000.2,1.77547828]
[1763410743209,0.4614,3001.2,2999.7,1.77547828]
[1763410743210,1.77389664,3001.2,2999.7,1.77547828]
[1763410743559,1.77389664,3001.2,2999.4,1.77547828]
[1763410743560,1.31249664,3000.6,2999.4,1.77547828]
[1763410743846,0.405504,3000.4,2999.0,1.77547828]
[1763410744047,0.94175151,3000.5,2998.5,0.001]
[1763410744048,0.405504,2999.0,2998.5,0.001]
[1763410744464,0.866904,2999.0,2998.5,0.001]
[1763410744854,1.31249664,2998.8,2998.2,0.001]
[1763410745055,0.405504,2998.6,2998.2,0.001]
[1763410745369,0.5563639,2998.7,2997.9,0.001]
[1763410745370,0.405504,2998.4,2997.9,0.001]
[1763410745573,0.5563639,2998.7,2997.2,0.001]
[1763410745574,3.33849664,2998.2,2997.2,0.001]
[1763410745771,0.405504,2997.5,2997.2,0.001]
[1763410746129,0.405504,2998.0,2997.2,0.001]
[1763410746471,0.405504,2998.0,2997.2,0.4709]
[1763410746672,15.0,2999.8,2997.9,0.194]
[1763410746977,1.51688706,2999.7,2998.2,1.77596321]
[1763410747268,0.4791,3000.1,2998.2,1.77596321]
[1763410747269,0.4791,3000.1,2998.4,1.18251966]
[1763410747565,0.4791,3000.1,2998.6,1.18251966]
[1763410747733,0.4791,3000.1,2998.3,0.4699]
[1763410747734,8.58411848,3000.1,2998.5,1.18251966]
[1763410747930,0.405504,3000.0,2998.5,1.18251966]
[1763410748126,0.405504,3000.0,2998.3,2.24586321]
[1763410748127,0.884604,3000.0,2998.6,1.18251966]
[1763410748366,0.405504,2999.8,2998.3,1.18251966]
[1763410748564,0.405504,2999.8,2998.1,1.18251966]
[1763410748878,0.405504,2998.1,2997.7,1.18251966]
[1763410749035,0.405504,2998.1,2997.4,1.18251966]
[1763410749234,0.3822251,2998.1,2997.4,1.18251966]
[1763410749537,0.3822251,2998.1,2997.3,1.18251966]
[1763410749947,0.3822251,2998.1,2997.2,0.001]
[1763410750359,0.3822251,2998.1,2997.3,0.4699]
[1763410750733,0.3822251,2998.1,2997.3,1.65241966]
[1763410751060,1.37806225,2999.9,2998.0,0.194]
[1763410751259,1.37806225,2999.9,2997.8,1.18208198]
[1763410751260,0.1445,2999.0,2997.8,1.18208198]
[1763410751470,0.4791,2999.3,2997.9,0.6639]
[1763410751692,0.4791,2999.3,2997.9,0.194]
[1763410752000,0.4791,2999.3,2997.8,1.18208198]
[1763410752147,0.405504,2999.2,2997.4,1.65198198]
[1763410752347,1.31249664,2999.0,2997.2,1.65298198]
[1763410752593,0.405504,2998.8,2997.3,0.4699]
[1763410752950,0.405504,2998.6,2997.3,0.4699]
[1763410753682,0.405504,2998.5,2997.2,0.001]
[1763410754399,3.554,2998.7,2997.2,0.4709]
[1763410754597,3.959504,2998.6,2997.2,0.4709]
[1763410754752,3.959504,2998.3,2997.2,0.001]
[1763410755148,3.959504,2998.3,2997.2,0.4709]
[1763410755391,0.405504,2998.3,2997.2,0.4709]
[1763410755589,0.405504,2998.6,2997.2,0.4709]
[1763410755790,3.554,2998.7,2997.2,0.4709]
[1763410756010,0.1445,2999.0,2997.5,0.001]
[1763410756149,0.002,2999.3,2997.7,1.18208198]
[1763410756345,0.002,2999.3,2997.8,0.4699]